Cogmind - Beta 10.2 @@@ ROGUE MODE // 2021.02.27 @ 17:02:37 Player: aperiodic Result: Self-destructed Performance ------------- Evolutions (3) 1500 Regions Visited (11) 2200 Robots Destroyed (316) 1580 Value Destroyed (8444) 8444 Prototype IDs (54) 1080 Alien Tech Used (0) 0 Bonus (-702) -702 TOTAL SCORE: 14102 Bonus ------- High Alert Combat Kills 734 Follower Combat Kills 52 Aligned with FarCom 300 Friendly Fire -1788 Cogmind --------- Core Integrity 137/700 Matter 271/300 Energy 310/310 System Corruption 26% Temperature Cool (0) Movement Walking (150) Ox1 Location -7/Factory Parts ------- > --- POWER (1) -------- Heavy Deuterium Engine > --- PROPULSION (3) --- Aluminum Leg Improved Carbon-fiber Leg Advanced Myomer Leg > --- UTILITY (6) ------ High-capacity Storage Unit High-capacity Storage Unit Hacking Suite > --- WEAPON (3) ------- Impact Mace > --- INVENTORY (20) --- Light Ion Engine Heavy Deuterium Engine Improved Salvage Targeting Computer Advanced Weapon Cycler Advanced Transmission Jammer Hacking Suite System Shield Long-range Tractor Beam Thief Drone Bay (3/3) Improved EM Pulse Cannon Faulty Cooled Particle Cannon Guided Missile Launcher Peak State ------------ > --- POWER ------------ Cold Fusion Reactor > --- PROPULSION ------- Carbon-fiber Leg Advanced Myomer Leg Advanced Myomer Leg > --- UTILITY ---------- High-capacity Storage Unit High-capacity Storage Unit Hacking Suite Hacking Suite System Shield System Purifier > --- WEAPON ----------- Enhanced Autogun Improved Heavy Machine Gun 8R-AWN's Boregun > --- INVENTORY -------- Light Neutrino Core Improved Salvage Targeting Computer Advanced Weapon Cycler Advanced Transmission Jammer Improved Medium Armor Plating Reflective Plating Powered Armor Hacking Suite Long-range Tractor Beam Thief Drone Bay Improved EM Pulse Cannon Improved EM Pulse Cannon Enhanced Autogun Improved Heavy Machine Gun Improved Heavy Machine Gun Advanced EMP Blaster Guided Missile Launcher Impact Mace [Rating: 74] Favorites ----------- Power Cold Fusion Reactor Engine Ion Engine Power Core Light Neutrino Core Reactor Cold Fusion Reactor Propulsion Advanced Myomer Leg Treads Light Treads Leg Advanced Myomer Leg Wheel Wheel Flight Unit Improved Flight Unit Utility High-capacity Storage Unit Device Advanced Weapon Cycler Storage High-capacity Storage Unit Processor Advanced Signal Interpreter Hackware Hacking Suite Protection Medium Armor Plating Weapon Assault Rifle Energy Gun Improved Medium Laser Energy Cannon Improved EM Pulse Cannon Ballistic Gun Assault Rifle Ballistic Cannon Light Cannon Launcher Grenade Launcher Special Weapon Mining Laser Impact Weapon Impact Mace Build | -11 -10 -10 -9 -9 -9 -8 -8 -8 -7 -7 -7 ------- Run | Scr Mat Min Mat Min Exi Min Mat Sto Fac Was Fac Slots Evolved 6 | . . . 2 . . . 2 . 2 . . Power . | . . . . . . . . . . . . Propulsion 1 | . . . . . . . . . 1 . . Utility 4 | . . . 2 . . . 2 . . . . Weapon 1 | . . . . . . . . . 1 . . Parts Attached 295 | 8 45 5 33 11 39 5 32 37 23 5 52 Power 14 | 1 3 . . . 4 . 1 1 . . 4 Engine 6 | 1 3 . . . . . . . . . 2 Core 4 | . . . . . 2 . . . . . 2 Reactor 4 | . . . . . 2 . 1 1 . . . Propulsion 70 | 3 24 2 15 . 7 . 4 5 1 1 8 Treads 26 | . 14 2 6 . 3 . 1 . . . . Leg 22 | . . . . . 4 . 3 5 1 1 8 Wheel 21 | 3 10 . 8 . . . . . . . . Hover . | . . . . . . . . . . . . Flight 1 | . . . 1 . . . . . . . . Utility 77 | 2 5 2 6 . 20 1 8 11 9 2 11 Device 23 | 1 . 1 . . 8 . 1 5 1 2 4 Storage 10 | 1 2 . 1 . 5 . 1 . . . . Processor 3 | . . . . . 2 . . . 1 . . Hackware 5 | . . . . . . . 1 2 2 . . Protection 36 | . 3 1 5 . 5 1 5 4 5 . 7 Artifact . | . . . . . . . . . . . . Weapon 134 | 2 13 1 12 11 8 4 19 20 13 2 29 Energy Gun 4 | 1 1 . . . . . 1 1 . . . Energy Cannon 17 | . . . 4 3 . . . . . . 10 Ballistic Gun 70 | 1 5 . 4 3 8 2 10 15 7 2 13 Ballistic Cannon 6 | . 6 . . . . . . . . . . Launcher 32 | . . 1 3 5 . 2 8 4 5 . 4 Special Weapon 2 | . 1 . 1 . . . . . . . . Impact Weapon 3 | . . . . . . . . . 1 . 2 Slashing Weapon . | . . . . . . . . . . . . Piercing Weapon . | . . . . . . . . . . . . Special Melee Weapon . | . . . . . . . . . . . . Unidentified Prototypes 21 | . . 1 1 . 8 . 1 5 2 . 3 Parts Lost 31 | . . . . . . . 2 1 3 . 25 Power 2 | . . . . . . . . . . . 2 Propulsion 7 | . . . . . . . . . 1 . 6 Utility 9 | . . . . . . . . 1 2 . 6 Weapon 13 | . . . . . . . 2 . . . 11 Highest Loss Streak 5 | . . . . . . . 2 1 1 . 5 Average Slot Usage (%) 96 | . 98 100 98 100 93 100 96 98 97 96 90 Engine 5 | . 13 14 11 11 7 . . . . . . Reactor 4 | . . . . . 3 11 8 9 7 7 1 Treads 6 | . 16 4 12 22 16 . . . . . . Leg 10 | . . . . . 5 22 17 17 21 20 21 Wheel 4 | . 10 23 9 . . . . . . . . Device 3 | . . . . . 4 . 8 9 . 5 2 Storage 16 | . 15 14 14 22 15 22 18 18 15 15 15 Processor 1 | . . . . . 5 1 . . 6 1 . Hackware 8 | . . . . . . . 8 22 19 23 20 Protection 11 | . 10 14 28 22 12 20 18 4 2 . 4 Energy Cannon 1 | . . . 5 4 . . . . . . 5 Ballistic Gun 14 | . 5 14 15 12 17 14 12 16 21 22 9 Ballistic Cannon 1 | . 20 2 . . . . . . . . . Launcher 3 | . . 11 . 5 4 7 1 . . . . Naked Turns . | . . . . . . . . . . . . Heaviest Build 154 | 11 46 46 73 73 154 98 106 98 95 93 102 Greatest Support 75 | 26 40 40 40 40 60 60 60 60 75 75 75 Greatest Overweight (x) 5 | . 2 2 3 1 3 1 2 2 1 1 5 Average Overweight (x) 1 | . 1 1 1 1 1 1 1 1 1 1 1 Largest Inventory Capacity 40 | 6 12 12 18 18 40 20 20 20 20 20 20 Average Capacity 17 | 5 10 12 14 18 18 20 20 20 20 20 20 Most Carried 23 | 6 12 12 18 18 23 20 20 20 20 20 20 Average Carried 16 | 4 9 11 13 18 15 19 19 19 19 19 17 Final Capacity 20 | 6 12 12 18 18 20 20 20 20 20 20 20 Final Carried 20 | 5 12 12 18 18 20 20 20 20 20 20 13 Class Distribution -------------------- 41% | Mutant 28% | Hauler-Mutant 19% | Hacker-Mutant 5% | Hacker-Gunner 3% | Hauler-Tank Dominant Class ---------------- Mutant | -10/Materials Mutant | -10/Mines Mutant | -9/Materials Mutant | -9/Mines Hauler-Mutant | -9/Exiles Hauler-Mutant | -8/Mines Hauler-Mutant | -8/Materials Hacker-Mutant | -8/Storage Hacker-Gunner | -7/Factory Hacker-Mutant | -7/Waste Hacker-Mutant | -7/Factory Resources | -11 -10 -10 -9 -9 -9 -8 -8 -8 -7 -7 -7 ----------- Run | Scr Mat Min Mat Min Exi Min Mat Sto Fac Was Fac Matter Collected 7953 | 327 675 275 705 413 761 232 1102 1207 866 69 1321 Remotely . | . . . . . . . . . . . . Salvage Created 12329 | 275 636 116 835 443 321 553 2243 1609 1169 683 3446 Parts 620 | 25 37 4 59 35 11 25 132 80 56 15 141 Haulers Intercepted 23 | . 2 . 6 . . . 5 6 3 . 1 Recyclers Shooed 9 | 1 2 . 1 1 . . . . 1 . 3 Parts Field Recycled . | . . . . . . . . . . . . Retrieved Matter . | . . . . . . . . . . . . Parts Self-Destructed . | . . . . . . . . . . . . Prevented . | . . . . . . . . . . . . Kills | -11 -10 -10 -9 -9 -9 -8 -8 -8 -7 -7 -7 ------- Run | Scr Mat Min Mat Min Exi Min Mat Sto Fac Was Fac Combat Hostiles Destroyed 192 | . 10 4 17 18 4 13 28 28 23 2 45 Guns 61 | . 2 . 6 3 2 3 14 15 9 2 5 Cannons 23 | . 8 . 1 . . . . . . . 14 AOE 97 | . . 4 10 15 2 9 14 13 14 . 16 Classes Destroyed 20 | 3 7 . 2 1 3 1 1 . 1 1 . Worker 29 | 1 3 1 1 3 . . 3 1 2 . 14 Builder 14 | . 1 . 1 . . 1 4 1 1 . 5 Tunneler 11 | 8 2 . . 1 . . . . . . . Hauler 23 | . 2 . 6 . . . 5 6 3 . 1 Recycler 21 | 1 2 . 2 . . . 3 2 4 . 7 Mechanic 1 | . 1 . . . . . . . . . . Operator 9 | . 2 . 2 . . . . 1 2 . 2 Turret 1 | . . . . . 1 . . . . . . Watcher 11 | . 2 . 1 . . . 4 . . . 4 Swarmer 47 | . 3 2 7 7 . 4 4 4 12 . 4 Grunt 89 | . 7 2 7 10 . 7 11 12 5 . 28 Brawler 6 | . . . 1 . . . 1 2 . . 2 Duelist 5 | . . . . . . 2 1 1 1 . . Protector 4 | . . . . 1 . . . 2 . . 1 Sentry 23 | . . . 2 . . . 9 7 4 . 1 Hunter 5 | . . . . . . . 2 . . . 3 Programmer 7 | . . . . . . . . . 1 . 6 Compactor 2 | . . . . . . . . . . 2 . Zionite 6 | . . . . . 6 . . . . . . Assembled 3 | . . . . . 3 . . . . . . Thug 1 | . . . . . . . . . . 1 . Best Kill Streak 11 | 2 4 2 8 6 3 4 9 11 4 1 11 Combat Bots Only 10 | . 3 2 7 4 3 4 6 10 4 1 6 Max Kills in Single Turn 5 | 1 2 2 5 2 2 3 3 5 4 1 5 Gunslinging 1 | . . . 1 . . . . . . . . Exploded 5 | . . 2 5 2 1 3 2 5 3 . 3 Melee . | . . . . . . . . . . . . Uniques/NPCs Destroyed 5 | . . . . 1 4 . . . . . . YI-UF0 (-9/Mines) EX-DEC (-9/Exiles) EX-HEX (-9/Exiles) EX-BIN (-9/Exiles) 8R-AWN (-9/Exiles) Combat | -11 -10 -10 -9 -9 -9 -8 -8 -8 -7 -7 -7 -------- Run | Scr Mat Min Mat Min Exi Min Mat Sto Fac Was Fac Damage Taken 9168 | . 311 20 539 411 320 426 1222 718 1099 . 4102 Core 952 | . 19 . 55 54 16 21 135 89 107 . 456 Absorbed by Shields . | . . . . . . . . . . . . Core Remaining (%) 78 | 100 . 92 . . . 63 . 59 . . . Volleys Fired 712 | 47 58 3 62 54 39 25 101 111 64 19 129 Largest 3 | 2 2 2 2 2 2 2 2 2 3 3 3 Hottest 138 | 70 70 50 100 88 60 60 86 80 55 70 138 Shots Fired 1287 | 94 116 6 107 74 75 30 154 173 174 45 239 Gun 920 | 94 22 3 75 30 73 10 127 165 165 45 111 Cannon 240 | . 94 . 16 22 . . . . . . 108 Launcher 126 | . . 3 15 22 2 20 27 8 9 . 20 Special 1 | . . . 1 . . . . . . . . Kinetic 954 | 47 107 3 75 30 73 10 124 164 165 45 111 Thermal 135 | 47 9 . 17 22 . . 3 . . . 37 Explosive 62 | . . 3 15 22 2 1 8 5 6 . . Electromagnetic 136 | . . . . . . 19 19 4 3 . 91 Robot Hit Streak 16 | 5 7 4 8 16 15 13 7 13 12 16 13 Robot Miss Streak 5 | 3 3 1 4 2 2 3 4 5 4 3 4 Penetration Max 2 | . . . . . 1 . 2 . . 1 . Secondary Targets 4 | . . . 1 1 . 1 1 . . . . Max Gunslinging Chain 1 | . . . 1 1 . 1 1 . . . . Shots Hit Robots 808 | 54 65 4 65 54 33 17 88 104 108 31 185 Core Hits 467 | 14 30 6 47 47 18 23 71 60 51 10 90 Critical Hits 94 | . 1 . 2 3 15 4 43 14 . 8 4 Critical Kills 34 | . 1 . 1 . 5 3 15 4 . 3 2 Critical Parts Destroyed 52 | . . . 1 3 9 1 27 8 . 1 2 Melee Attacks 62 | . . . . . . . . . . . 62 Impact 62 | . . . . . . . . . . . 62 Slashing . | . . . . . . . . . . . . Piercing . | . . . . . . . . . . . . Sneak Attacks 6 | . . . . . . . . . . . 6 Combat Hostiles . | . . . . . . . . . . . . Follow-up Attacks . | . . . . . . . . . . . . Damage Inflicted 25990 | 568 1064 208 1888 2202 679 1044 3167 3518 3412 786 7454 Guns 10198 | 568 169 29 581 341 559 124 1561 2175 2089 786 1216 Cannons 3599 | . 895 . 204 409 . . . . . . 2091 Explosions 10220 | . . 173 1103 1426 120 920 1606 1343 1323 . 2206 Melee 1906 | . . . . . . . . . . . 1906 Ramming 67 | . . 6 . 26 . . . . . . 35 Kinetic 10587 | 176 1001 29 581 341 559 124 1510 2175 2089 786 1216 Thermal 2974 | 392 63 . 204 409 . 188 63 233 . . 1422 Explosive 5277 | . . 173 1103 1426 120 182 809 372 1092 . . Electromagnetic 5179 | . . . . . . 550 785 738 231 . 2875 Impact 1906 | . . . . . . . . . . . 1906 Slashing . | . . . . . . . . . . . . Piercing . | . . . . . . . . . . . . Highest Corruption 26 | . 1 1 . . . 1 1 1 . 24 26 Average Corruption 5 | . 1 1 . . . 1 1 1 . 15 20 Corruption Purged 11 | . . . . . . . . . . . 11 Effects 261 | . 10 13 . . . . 3 16 . 24 195 Message Errors 51 | . 6 4 . . . . 2 4 . 4 31 Matter Fused 31 | . . . . . . . . . . 1 30 Heat Flow Errors 16 | . . . . . . . . . . 1 15 Energy Discharges 19 | . 2 1 . . . . . 5 . 1 10 Parts Rejected 3 | . . . . . . . . . . 1 2 Data Loss (minor) 32 | . 1 8 . . . . . 5 . 3 15 Data Loss (major) 2 | . . . . . . . . . . . 2 Misfires 4 | . . . . . . . . . . 1 3 Alerts 1 | . . . . . . . . . . . 1 Misdirections 22 | . . . . . . . . . . 3 19 Targeting Errors 71 | . 1 . . . . . . 1 . 6 63 Weapon Failures 9 | . . . . . . . 1 1 . 3 4 Overload Shots . | . . . . . . . . . . . . Overflow Damage 930 | . 7 . 10 53 . 62 33 60 33 . 672 Projectiles 46 | . 7 . . . . . . . . . 39 Explosions 322 | . . . 10 53 . 62 33 60 33 . 71 Melee 562 | . . . . . . . . . . . 562 Knockbacks 16 | . 10 . . . . . . . . . 6 Impact 5 | . . . . . . . . . . . 5 Kinetic 9 | . 9 . . . . . . . . . . Secondary 2 | . 1 . . . . . . . . . 1 Self-Inflicted Damage 712 | . . . 29 42 . 58 315 95 . . 173 Shots 27 | . . . 1 2 . 3 8 4 . . 9 Rammed 6 | . . 2 . 3 . . . . . . 1 Targets Rammed 8 | . . 2 . 3 . . . . . . 3 Kicked 2 | . . . . . . . . . . . 2 Crushed . | . . . . . . . . . . . . Highest Temperature 425 | 140 153 . 320 238 27 78 115 33 20 264 425 Average Temperature 70 | 59 38 . 105 97 9 20 22 7 6 52 104 Received Heat Transfer 2724 | . 138 . 204 168 21 189 351 279 285 . 1089 Effects 7 | . . . 1 . . . . . . . 6 Shutdowns 2 | . . . . . . . . . . . 2 Energy Bleed 2 | . . . . . . . . . . . 2 Interference 2 | . . . 1 . . . . . . . 1 Short Circuit 1 | . . . . . . . . . . . 1 Siege Activations . | . . . . . . . . . . . . Robots Corrupted 8 | . . . . . . 1 . . . . 7 Combat Hostiles 7 | . . . . . . 1 . . . . 6 Parts Fried 28 | . . . . . . 2 7 . 1 . 18 Impact Corruptions 31 | . . . . . . . . . . . 31 Robots Melted . | . . . . . . . . . . . . Combat Hostiles . | . . . . . . . . . . . . Parts Melted 4 | . . . . 1 . . . . . . 3 Heat Transferred 4992 | 1147 185 . 370 740 . 200 161 287 . . 1902 Parts Sabotaged . | . . . . . . . . . . . . Parts Stolen . | . . . . . . . . . . . . Parts Stripped . | . . . . . . . . . . . . Power Chain Reactions 23 | . . . . . . 2 2 2 . . 17 Missiles Intercepted . | . . . . . . . . . . . . Alert | -11 -10 -10 -9 -9 -9 -8 -8 -8 -7 -7 -7 ------- Run | Scr Mat Min Mat Min Exi Min Mat Sto Fac Was Fac Peak Influence 995 | 50 256 88 457 467 . 201 887 495 306 101 995 Initial 370 | . 32 . 33 87 . . 19 370 35 101 70 Average 183 | 21 101 11 245 268 . 76 536 122 93 101 258 Maximum Alert Level 3 | . 1 . 2 2 . 1 3 2 1 . 3 Low Security (%) 70 | 100 95 100 43 33 . 94 7 87 92 100 55 Level 1 13 | . 4 . 46 50 . 5 1 10 7 . 18 Level 2 14 | . . . 10 15 . . 82 1 . . 17 Level 3 2 | . . . . . . . 8 . . . 8 Level 4 . | . . . . . . . . . . . . Level 5 . | . . . . . . . . . . . . High Security . | . . . . . . . . . . . . Max Security . | . . . . . . . . . . . . Squads Dispatched 41 | . 3 . 3 1 . . 2 7 6 . 19 Investigation 6 | . 1 . 2 . . . 1 1 . . 1 Extermination 7 | . . . . . . . . . 1 . 6 Reinforcement 13 | . 2 . 1 . . . 1 1 2 . 6 Assault 6 | . . . . 1 . . . 2 . . 3 Garrison 9 | . . . . . . . . 3 3 . 3 Intercept . | . . . . . . . . . . . . Construction Impeded 4 | . . . . . . . 1 . . . 3 Haulers Reinforced 1 | . . . . . . . . . . . 1 Stealth | -11 -10 -10 -9 -9 -9 -8 -8 -8 -7 -7 -7 --------- Run | Scr Mat Min Mat Min Exi Min Mat Sto Fac Was Fac Distress Signals 13 | . 2 1 1 . . . 4 . . . 5 Communications Jammed . | . . . . . . . . . . . . Distress Signals . | . . . . . . . . . . . . Times Spotted 326 | . 24 3 28 20 37 12 49 38 32 6 77 Peak Tracking Total 11 | . 5 2 8 5 9 4 6 10 4 4 11 Tactical Retreats 22 | . . . 4 . 6 . 5 . . . 7 Traps | -11 -10 -10 -9 -9 -9 -8 -8 -8 -7 -7 -7 ------- Run | Scr Mat Min Mat Min Exi Min Mat Sto Fac Was Fac Traps Triggered 13 | . 5 . . . . . 4 . 3 . 1 Indirectly 2 | . . . . . . . 2 . . . . Trap Hack Attempts . | . . . . . . . . . . . . Triggered . | . . . . . . . . . . . . Disarmed . | . . . . . . . . . . . . Reprogrammed . | . . . . . . . . . . . . Reused 2 | . . 2 . . . . . . . . . Traps Extracted . | . . . . . . . . . . . . Installed 4 | . . 4 . . . . . . . . . Triggered 3 | . . . . . . . 1 . . . 2 Exploded 3 | . . . . . 3 . . . . . . Machines | -11 -10 -10 -9 -9 -9 -8 -8 -8 -7 -7 -7 ---------- Run | Scr Mat Min Mat Min Exi Min Mat Sto Fac Was Fac Machines Disabled 56 | . 1 2 1 9 11 2 16 5 4 . 5 Max in Single Turn 4 | . 1 1 1 4 3 1 2 1 2 . 1 Garrison Access 3 | . . . . . . . 1 1 1 . . Machines Sabotaged . | . . . . . . . . . . . . Garrisons Compromised . | . . . . . . . . . . . . Overloaded Fab Kills . | . . . . . . . . . . . . Fab Network Shutdowns . | . . . . . . . . . . . . Hacking | -11 -10 -10 -9 -9 -9 -8 -8 -8 -7 -7 -7 --------- Run | Scr Mat Min Mat Min Exi Min Mat Sto Fac Was Fac Machines Accessed 60 | . 8 1 9 . 2 . 9 16 10 . 5 Terminals 37 | . 6 . 7 . . . 6 11 6 . 1 Fabricators . | . . . . . . . . . . . . Repair Stations 8 | . 1 . 1 . . . 1 2 1 . 2 Recycling Units 7 | . 1 . 1 . . . . 2 2 . 1 Scanalyzers 2 | . . . . . . . 1 . . . 1 Garrison Access 3 | . . . . . . . 1 1 1 . . Total Hacks 212 | . 27 1 25 . 2 . 46 61 21 . 29 Successful 140 | . 15 1 13 . 2 . 30 46 9 . 24 Failed 72 | . 12 . 12 . . . 16 15 12 . 5 Catastrophic 6 | . 1 . 1 . . . 1 1 2 . . Database Lockouts . | . . . . . . . . . . . . Manual 85 | . 16 . 11 . 1 . 21 25 7 . 4 Terminals 128 | . 21 . 22 . . . 27 41 13 . 4 Fabricators . | . . . . . . . . . . . . Repair Stations 38 | . 4 . 2 . . . 5 14 2 . 11 Recycling Units 14 | . 2 . 1 . . . . 4 5 . 2 Scanalyzers 22 | . . . . . . . 10 . . . 12 Garrison Access 7 | . . . . . . . 4 2 1 . . Terminal Hacks 48 | . 6 1 8 . 2 . 8 17 5 . 1 Record 1 | . . . . . 1 . . . . . . Robot Analysis 2 | . 1 . . . . . . 1 . . . Prototype ID Bank 5 | . . . 3 . . . 1 1 . . . Open Door 5 | . . 1 . . . . . 4 . . . Machine Index 1 | . . . . . . . . 1 . . . Terminal Index 5 | . 1 . 1 . . . 1 1 1 . . Repair Station Index 1 | . . . . . . . 1 . . . . Alert Level 2 | . . . . . . . 1 1 . . . Unreport Threat 8 | . . . 1 . . . 2 4 1 . . Locate Traps 11 | . 2 . 2 . . . 2 2 2 . 1 Recall Investigation 1 | . 1 . . . . . . . . . . Recall Reinforcements 2 | . 1 . . . . . . . 1 . . Registered Prototypes 1 | . . . . . . . . 1 . . . Zone Layout 2 | . . . 1 . . . . 1 . . . EX-Prototype ID Bank 1 | . . . . . 1 . . . . . . Fabricator Hacks . | . . . . . . . . . . . . Repair Station Hacks 34 | . 4 . 2 . . . 4 13 1 . 10 Scan Component 18 | . 2 . 1 . . . 2 7 1 . 5 Repair 16 | . 2 . 1 . . . 2 6 . . 5 Recycling Unit Hacks 3 | . . . . . . . . 3 . . . Retrieve Components 3 | . . . . . . . . 3 . . . Scanalyzer 22 | . . . . . . . 10 . . . 12 Insert Component 10 | . . . . . . . 4 . . . 6 Analyze 12 | . . . . . . . 6 . . . 6 Garrison Access Hacks 2 | . . . . . . . . 1 1 . . Seal Access 2 | . . . . . . . . 1 1 . . Unauthorized Hacks 31 | . 5 . 3 . . . 8 12 2 . 1 Terminals 26 | . 4 . 2 . . . 7 11 1 . 1 Track 10 | . 2 . 1 . . . 2 5 . . . Assimilate 3 | . . . . . . . 2 1 . . . Botnet 8 | . 1 . 1 . . . 1 3 1 . 1 Disrupt 1 | . . . . . . . . 1 . . . Operators 4 | . 1 . . . . . 2 1 . . . Fabricators . | . . . . . . . . . . . . Repair Stations . | . . . . . . . . . . . . Recycling Units 4 | . 1 . 1 . . . . 1 1 . . Mask 2 | . 1 . . . . . . . 1 . . Tunnel 2 | . . . 1 . . . . 1 . . . Scanalyzers . | . . . . . . . . . . . . Garrison Access 1 | . . . . . . . 1 . . . . Jam 1 | . . . . . . . 1 . . . . Data Cores Recovered 1 | . . . 1 . . . . . . . . Used 1 | . . . 1 . . . . . . . . Hacking Detections 45 | . 7 . 8 . . . 9 10 8 . 3 Full Trace Events 1 | . . . 1 . . . . . . . . Feedback Events . | . . . . . . . . . . . . Feedback Blocked . | . . . . . . . . . . . . Robot Schematics Acquired . | . . . . . . . . . . . . Robots Built . | . . . . . . . . . . . . Matter . | . . . . . . . . . . . . Time . | . . . . . . . . . . . . Total Robot Build Rating . | . . . . . . . . . . . . Part Schematics Acquired 10 | . . . . . . . 4 . . . 6 Parts Built . | . . . . . . . . . . . . Matter . | . . . . . . . . . . . . Time . | . . . . . . . . . . . . Total Part Build Rating . | . . . . . . . . . . . . Parts Repaired 15 | . 2 . 1 . . . 2 6 . . 4 Time 1191 | . 52 . 13 . . . 179 555 . . 392 Parts Recycled . | . . . . . . . . . . . . Recycled Matter . | . . . . . . . . . . . . Retrieved Matter . | . . . . . . . . . . . . Retrieved Components 18 | . . . . . . . . 18 . . . Parts Scanalyzed 10 | . . . . . . . 4 . . . 6 Part Schematics Acquired 10 | . . . . . . . 4 . . . 6 Parts Damaged 3 | . . . . . . . 2 . . . 1 Bothacking | -11 -10 -10 -9 -9 -9 -8 -8 -8 -7 -7 -7 ------------ Run | Scr Mat Min Mat Min Exi Min Mat Sto Fac Was Fac Used RIF Installer . | . . . . . . . . . . . . Robots Hacked . | . . . . . . . . . . . . Non-combat . | . . . . . . . . . . . . Combat . | . . . . . . . . . . . . Robot Hacks Applied . | . . . . . . . . . . . . Relay Couplers Released . | . . . . . . . . . . . . Robots Rewired . | . . . . . . . . . . . . Allies Hacked . | . . . . . . . . . . . . Hacks Repelled . | . . . . . . . . . . . . Allies | -11 -10 -10 -9 -9 -9 -8 -8 -8 -7 -7 -7 -------- Run | Scr Mat Min Mat Min Exi Min Mat Sto Fac Was Fac Total Allies 6 | . . . . 1 . . 1 3 . 1 . Largest Group 4 | . . . . 1 1 . 1 4 . 1 . Highest-Rated Group 82 | . . . . 31 31 . 10 82 . 31 . Highest-Rated Ally 31 | . . . . 31 31 . 10 31 . 31 . Total Orders 10 | . . . . . 8 . 2 . . . . STAY 1 | . . . . . . . 1 . . . . FOLLOW 1 | . . . . . . . 1 . . . . RETURN 8 | . . . . . 8 . . . . . . Ally Attacks 151 | . . . . 9 133 . . 7 . 2 . Total Damage 1195 | . . . . 105 993 . . 97 . . . Kills 7 | . . . . 2 5 . . . . . . Allies Corrupted . | . . . . . . . . . . . . Allies Melted . | . . . . . . . . . . . . Intel | -11 -10 -10 -9 -9 -9 -8 -8 -8 -7 -7 -7 ------- Run | Scr Mat Min Mat Min Exi Min Mat Sto Fac Was Fac Robot Analysis Total 2 | . 1 . . . . . . 1 . . . Derelict Logs Recovered 2 | . . 1 . 1 . . . . . . . Drone Launches 30 | . . . . . 30 . . . . . . Drone Recoveries 30 | . . . . . 30 . . . . . . Exploration | -11 -10 -10 -9 -9 -9 -8 -8 -8 -7 -7 -7 ------------- Run | Scr Mat Min Mat Min Exi Min Mat Sto Fac Was Fac Turns Passed 22171 | 303 1711 2773 1156 1630 3721 971 2117 3107 1791 305 2586 Spaces Moved 10254 | 180 860 754 617 716 1897 583 894 1443 1028 111 1171 Core 5 | 5 . . . . . . . . . . . Treads 2859 | . 335 228 293 716 1287 . . . . . . Legs 5840 | . . . . . 610 583 894 1443 1028 111 1171 Wheels 1550 | 175 525 526 324 . . . . . . . . Hover . | . . . . . . . . . . . . Flight . | . . . . . . . . . . . . Fastest Speed 50 | 50 80 100 100 180 120 150 150 150 150 150 150 Average Speed 154 | 81 124 124 143 180 176 150 174 159 150 150 151 Slowest Speed 270 | 90 200 180 180 180 220 150 185 185 150 150 270 Overloaded Moves . | . . . . . . . . . . . . Propulsion Burnouts . | . . . . . . . . . . . . Robots Hopped . | . . . . . . . . . . . . Cave-ins Triggered . | . . . . . . . . . . . . Exploration Rate (%) 70 | 6 90 93 71 99 91 96 71 93 30 80 25 Regions Visited 11 Branch Regions 5 Pre-discovered Areas 4 | . . . 1 1 1 . . 1 . . . Known Exits Taken 1 | . . . . . . . 1 . . . . Unknown Exits Taken 8 | 1 1 1 1 1 1 1 . 1 . . . Scrap Searched 4 | . . 1 . 1 . 2 . . . . . Spaces Dug 25 | . . . 1 3 5 . 1 7 . . 8 Terrain Destroyed 581 | . . 24 67 119 16 25 177 64 32 4 53 Melee . | . . . . . . . . . . . . Projectile 82 | . . . 1 . 7 5 39 21 . 4 5 AOE 499 | . . 24 66 119 9 20 138 43 32 . 48 Terrain Rammed . | . . . . . . . . . . . . Walls Destroyed . | . . . . . . . . . . . . Machines Disabled . | . . . . . . . . . . . . Actions | -11 -10 -10 -9 -9 -9 -8 -8 -8 -7 -7 -7 --------- Run | Scr Mat Min Mat Min Exi Min Mat Sto Fac Was Fac Total 15440 | 251 1370 2585 780 976 2220 649 1356 2148 1186 223 1696 Wait 3792 | 4 372 1801 31 191 159 31 306 517 41 85 254 Move 10244 | 179 859 753 616 715 1896 582 893 1442 1028 110 1171 Hop . | . . . . . . . . . . . . Pick Up 172 | 12 20 8 19 1 36 3 11 20 16 3 23 Fast Attach 38 | 1 8 1 5 . 8 . 5 8 2 . . Attach 81 | 6 4 . 2 . 17 1 6 5 10 3 27 Detach 4 | . . . . . 2 . 1 . 1 . . Swap 176 | 1 33 4 26 11 14 4 21 24 11 2 25 Drop 147 | 1 16 9 19 1 49 3 12 21 13 1 2 Fire 712 | 47 58 3 62 54 39 25 101 111 64 19 129 Melee 62 | . . . . . . . . . . . 62 Ram . | . . . . . . . . . . . . Kick 3 | . . . . . . . . . . . 3 Crush 5 | . . 2 . 3 . . . . . . . Escape Stasis . | . . . . . . . . . . . . Rewire . | . . . . . . . . . . . . Trap 4 | . . 4 . . . . . . . . . Miscellaneous . | . . . . . . . . . . . . Route ------- -11/Scrapyard -10/Materials (discovered 5 exits: *Mat x3 / *Min x2) -10/Mines (discovered 2 exits: *Mat x2) -9/Materials (discovered 3 exits: *Mat x2 / [*Min]) -9/Mines (discovered 3 exits: *Mat x2 / *Exi) -9/Exiles (discovered 2 exits: [*Min x2]) -8/Mines (discovered 2 exits: *Mat x2) -8/Materials (discovered 4 exits: *Fac x2 / *Sto x2) -8/Storage -7/Factory (discovered 4 exits: *Fac x2 / *Low x2) -7/Waste -7/Factory History --------- Turn | Location | Event 10 | -11/Scrapyard | Discovered new exit (range 15) 304 | -11/Scrapyard | Entered Materials 318 | -10/Materials | Build established: Mutant 597 | -10/Materials | Discovered new exit (range 16) 752 | -10/Materials | Discovered new exit (range 16) 969 | -10/Materials | Discovered new exit (range 5) 1170 | -10/Materials | Discovered new exit (range 16) 1612 | -10/Materials | Discovered new exit (range 6) 1964 | -10/Materials | Repaired Lgt. Treads 1991 | -10/Materials | Repaired Lgt. Treads 2015 | -10/Materials | Entered Mines 2025 | -10/Mines | Found a hidden stash of uninstalled traps 2085 | -10/Mines | Assembled infested the area 4160 | -10/Mines | Discovered new exit (range 9) 4204 | -10/Mines | Discovered new exit (range 8) 4206 | -10/Mines | Learned Materials security intel 4291 | -10/Mines | Found the Drone Emporium 4295 | -10/Mines | Found Prototype Device 4295 | -10/Mines | Identified Thief Drone Bay 4788 | -10/Mines | Entered Materials 4788 | -9/Materials | Evolved 2 slots: Utility x2 5032 | -9/Materials | Destroyed 7 combat bots 5086 | -9/Materials | Discovered new exit (range 7) 5271 | -9/Materials | Discovered new exit (range 15) 5496 | -9/Materials | Repaired Assault Rifle 5756 | -9/Materials | Discovered new exit (range 16) 5944 | -9/Materials | Entered Mines 6197 | -9/Mines | Deemed a non-threat by the Exiles lab entrance 6197 | -9/Mines | Discovered new exit (range 5) 6466 | -9/Mines | Discovered new exit (range 5) 6538 | -9/Mines | YI-UF0 nonchalantly dropped a Grenade Launcher on the ground 6577 | -9/Mines | Destroyed YI-UF0 6852 | -9/Mines | Met a Derelict testing a Signal Generator 6873 | -9/Mines | Found Signal Generator 7187 | -9/Mines | Learned location of Storage (-8) 7410 | -9/Mines | Discovered new exit (range 11) 7574 | -9/Mines | Entered Exiles 7574 | -9/Exiles | Accompanied by 1 ally 7598 | -9/Exiles | Discovered new exit (range 15) 7619 | -9/Exiles | Met 8R-AWN 7648 | -9/Exiles | Met EX-HEX 7749 | -9/Exiles | Met EX-DEC 7783 | -9/Exiles | Learned location of Zion (-7) 7880 | -9/Exiles | Discovered new exit (range 11) 8135 | -9/Exiles | Build established: Hauler-Mutant 8290 | -9/Exiles | Met EX-BIN 8316 | -9/Exiles | Aligned with FarCom system 8318 | -9/Exiles | Given EX-Vault access code 8364 | -9/Exiles | Opened EX-Vault 8382 | -9/Exiles | Found Cloak of Protection 8427 | -9/Exiles | Warned to stay clear of 0b10 Research branches 9104 | -9/Exiles | Attacked by the Exiles 9286 | -9/Exiles | Found 8R-AWN's Boregun 9303 | -9/Exiles | Found Prototype Device 9303 | -9/Exiles | Identified AS-neutralizer No. 17b 9338 | -9/Exiles | Build established: Mutant 9415 | -9/Exiles | Found 8R-AWN's Boregun 9673 | -9/Exiles | Allies destroyed EX-DEC 9698 | -9/Exiles | Allies destroyed EX-HEX 9710 | -9/Exiles | Allies destroyed EX-BIN 9969 | -9/Exiles | Destroyed 8R-AWN 10197 | -9/Exiles | Found Prototype Device 10197 | -9/Exiles | Identified System Purifier 10687 | -9/Exiles | Build established: Hauler-Mutant 11295 | -9/Exiles | Entered Mines 12001 | -8/Mines | Discovered new exit (range 8) 12040 | -8/Mines | Discovered new exit (range 6) 12266 | -8/Mines | Entered Materials 12266 | -8/Materials | Evolved 2 slots: Utility x2 12267 | -8/Materials | Identified exit to Storage 12520 | -8/Materials | Discovered exit to Storage (range 16) 12633 | -8/Materials | Repaired Adv. Myomer Leg 12715 | -8/Materials | Repaired Cold Fusion Reactor 13626 | -8/Materials | Discovered new exit (range 4) 13926 | -8/Materials | Discovered new exit (range 15) 14383 | -8/Materials | Entered Storage 14383 | -8/Storage | Accompanied by 1 ally 14586 | -8/Storage | Met a pair of Derelict thieves 14704 | -8/Storage | Destroyed 10 combat bots 15347 | -8/Storage | Garrison activated, responded to threat 15426 | -8/Storage | Found Prototype Launcher 15431 | -8/Storage | Identified Gui. Missile Launcher 15473 | -8/Storage | Discovered new exit (range 13) 15490 | -8/Storage | Build established: Hacker-Mutant 15894 | -8/Storage | Repaired Broken Gravity Neutralizing Apparatus? 16144 | -8/Storage | Repaired Broken System Purifier? 16145 | -8/Storage | Repaired Lgt. Neutrino Core 16245 | -8/Storage | Repaired Adv. Myomer Leg? 16284 | -8/Storage | Repaired Mni. Grenade Launcher? 16412 | -8/Storage | Repaired Adv. Myomer Leg 17490 | -8/Storage | Entered Factory 17490 | -7/Factory | Evolved 2 slots: Propulsion x1, Weapon x1 17554 | -7/Factory | Discovered new exit (range 7) 17658 | -7/Factory | Identified exit to Factory 17792 | -7/Factory | Build established: Hacker-Gunner 17924 | -7/Factory | Garrison activated, responded to threat 18036 | -7/Factory | Discovered new exit (range 3) 18047 | -7/Factory | Identified exit to Lower Caves 18352 | -7/Factory | Build established: Hauler-Tank 18862 | -7/Factory | Discovered exit to Factory (range 14) 19088 | -7/Factory | Found Powered Armor 19271 | -7/Factory | Discovered exit to Lower Caves (range 15) 19281 | -7/Factory | Sucked down chute 19281 | -7/Factory | Entered Waste 19282 | -7/Waste | Met a frightened Derelict 19296 | -7/Waste | EMP discharged 19383 | -7/Waste | Destroyed C-40 Crusher 19396 | -7/Waste | EMP discharged 19396 | -7/Waste | System corruption reached 10% 19410 | -7/Waste | Destroyed C-40 Crusher 19432 | -7/Waste | Spotted C-40 Crusher 19432 | -7/Waste | Spotted C-40 Crusher 19496 | -7/Waste | EMP discharged 19524 | -7/Waste | Spotted C-40 Crusher 19525 | -7/Waste | Spotted C-40 Crusher 19562 | -7/Waste | Discovered new exit (range 16) 19586 | -7/Waste | Entered Factory 19729 | -7/Factory | Build established: Hacker-Mutant 21150 | -7/Factory | Garrison activated, responded to threat 21289 | -7/Factory | Repaired Adv. EMP Blaster? 21427 | -7/Factory | Repaired Lgt. Neutrino Core 21535 | -7/Factory | Repaired Adv. Myomer Leg? 21615 | -7/Factory | First assault squad dispatched 21703 | -7/Factory | Core integrity fell below 50% 21739 | -7/Factory | Lost 4 parts (2u2w) 21943 | -7/Factory | Lost 5 parts (2n1u2w) 22119 | -7/Factory | Repaired Imp. Medium Armor Plating? 22162 | -7/Factory | Core integrity fell below 20% 22172 | -7/Factory | Self-destructed Last Messages --------------- 22149_ K-01 Serf collects debris. 22150_ BFHNGV 22166_ I%TGWCAVNJWHSBP|DQN